bitfinex/quotes_ETHUSD_20251117
["timestamp","ask_amount","ask_price","bid_price","bid_amount"]
[1763356017715,0.007,3195.9,3195.8,0.405504]
[1763356017878,0.5011,3195.9,3195.8,0.78457882]
[1763356018084,0.9908,3195.9,3195.8,0.78457882]
[1763356019413,0.007,3195.9,3195.8,0.78457882]
[1763356019741,0.007,3195.9,3195.8,0.95567882]
[1763356021725,0.002,3196.2,3196.1,3.5469056]
[1763356021912,0.002,3196.2,3196.1,4.07269616]
[1763356023327,0.9858,3196.2,3196.1,0.35469056]
[1763356023541,0.4917,3196.2,3196.0,3.5469056]
[1763356023734,0.002,3196.2,3196.1,1.3048408]
[1763356024447,0.002,3196.2,3196.1,1.1337408]
[1763356027154,0.002,3196.2,3196.1,1.7103448]
[1763356034991,0.002,3196.2,3196.1,1.5392448]
[1763356035161,0.002,3196.2,3196.1,2.00730944]
[1763356035481,0.002,3196.2,3196.1,2.17840944]
[1763356036043,0.4961,3196.6,3196.2,0.405504]
[1763356036044,0.002,3196.6,3196.2,0.405504]
[1763356036281,0.007,3196.9,3196.6,1.5392448]
[1763356036486,0.6996,3196.9,3196.8,1.1337408]
[1763356036880,1.1695,3196.9,3196.8,1.1337408]
[1763356037263,0.4769,3196.9,3196.8,1.1337408]
[1763356037457,0.007,3196.9,3196.8,1.91625447]
[1763356038990,0.007,3196.9,3196.8,2.32175847]
[1763356039189,0.4705,3197.6,3196.8,2.32175847]
[1763356039402,0.49092501,3198.4,3197.2,3.1414016]
[1763356039403,0.4705,3197.5,3197.2,3.1414016]
[1763356039756,0.4699,3197.3,3197.2,4.6806464]
[1763356040288,0.4705,3197.5,3197.3,0.405504]
[1763356040658,0.4923,3198.0,3197.5,0.405504]
[1763356040962,0.4923,3198.0,3197.8,1.1337408]
[1763356041163,0.005,3198.9,3197.8,1.7103448]
[1763356041164,0.4923,3198.5,3197.8,1.7103448]
[1763356041348,0.005,3198.9,3197.9,0.405504]
[1763356041555,0.005,3198.9,3198.8,3.1414016]
[1763356041996,0.9486,3198.9,3198.8,3.1414016]
[1763356042788,0.4657,3198.9,3198.8,3.1414016]
[1763356043002,0.9486,3198.9,3198.8,3.1414016]
[1763356045588,0.9486,3198.9,3198.8,3.5469056]
[1763356045589,0.4657,3198.9,3198.8,3.5469056]
[1763356045771,0.9486,3198.9,3198.8,3.5469056]
[1763356046166,0.9486,3198.9,3198.8,3.1414016]
[1763356046391,0.4677,3198.9,3198.8,3.1414016]
[1763356046596,0.9506,3198.9,3198.8,3.1414016]
[1763356046782,0.4677,3198.9,3198.8,3.75155705]
[1763356047567,0.4677,3198.9,3198.8,4.12671276]
[1763356047892,0.9506,3198.9,3198.8,4.12671276]
[1763356050401,0.9506,3198.9,3198.1,3.1414016]
[1763356050593,0.4607,3198.2,3197.9,3.1414016]
[1763356050793,0.4607,3198.2,3198.0,1.1337408]
[1763356050990,0.4829,3198.1,3198.0,1.7534989]
[1763356051205,0.9436,3198.1,3198.0,1.7534989]
[1763356051807,0.9436,3198.1,3198.0,1.1337408]
[1763356052031,0.9436,3198.1,3197.6,1.1347408]
[1763356052210,0.647,3197.7,3197.6,0.001]
[1763356052706,1.1299,3197.7,3197.6,0.001]
[1763356056910,1.55703016,3197.7,3197.6,0.001]
[1763356057165,1.55703016,3197.7,3197.3,0.001]
[1763356057322,0.4607,3197.4,3197.3,0.001]
[1763356057830,0.9436,3197.4,3197.3,0.001]
[1763356058414,4.08211323,3197.4,3197.0,0.001]
[1763356058614,0.4607,3197.1,3197.0,0.001]
[1763356059029,0.9436,3197.1,3197.0,0.001]
[1763356060354,5.21585403,3197.1,3196.1,0.61748688]
[1763356060572,0.647,3196.2,3196.1,0.61748688]
[1763356060747,0.647,3196.2,3196.1,0.005]
[1763356060946,1.1299,3196.2,3196.1,0.005]
[1763356061674,1.1299,3196.2,3195.5,0.001]
[1763356061959,0.5597,3195.6,3195.5,0.001]
[1763356062112,0.5597,3195.6,3195.2,0.001]
[1763356062318,0.4607,3195.3,3195.2,0.001]
[1763356062514,0.9436,3195.3,3195.1,0.005]
[1763356062723,0.4607,3195.2,3195.1,0.005]
[1763356062923,0.9436,3195.2,3195.1,0.005]
[1763356074669,1.43497355,3195.2,3195.1,0.005]
[1763356075157,0.9436,3195.2,3195.1,0.005]
[1763356078036,1.43497633,3195.2,3195.1,0.005]
[1763356080541,0.9403,3195.1,3194.9,0.001]
[1763356080737,5.21699019,3194.8,3194.7,0.001]
[1763356080937,5.70159019,3194.8,3194.7,0.001]
[1763356081140,0.405504,3194.6,3194.4,0.001]
[1763356081462,1.1337408,3194.7,3193.1,0.005]
[1763356081463,0.4846,3194.2,3193.1,0.005]
[1763356081662,0.4846,3194.0,3193.1,0.005]
[1763356082030,0.9403,3194.0,3193.1,0.005]
[1763356085748,1.45520985,3194.0,3193.1,0.005]
[1763356087355,1.86071385,3194.0,3193.1,0.005]
[1763356087565,0.405504,3193.9,3193.1,0.005]
[1763356087888,0.405504,3193.5,3193.1,0.005]
[1763356088089,0.405504,3193.5,3192.1,0.005]
[1763356088090,1.6183408,3193.2,3192.1,0.005]
[1763356088287,0.6692,3192.2,3192.1,0.005]
[1763356088697,1.1249,3192.2,3192.1,0.005]
[1763356091257,0.1846,3192.5,3192.1,0.005]
[1763356091458,1.3183408,3193.2,3192.2,0.1941]
[1763356091768,1.3183408,3193.2,3192.1,0.005]
[1763356091769,0.4846,3192.2,3192.1,0.005]
[1763356092193,0.9403,3192.2,3192.1,0.005]
[1763356094166,0.4557,3192.5,3192.1,0.005]
[1763356094401,0.4846,3192.2,3192.1,0.005]
[1763356094699,0.4557,3192.6,3192.1,0.1991]
[1763356094857,0.4846,3192.2,3192.1,0.005]
[1763356095291,0.9403,3192.2,3192.1,0.005]
[1763356095919,1.5894408,3192.9,3192.1,0.1991]
[1763356096119,0.6346913,3192.8,3192.1,0.005]
[1763356096266,0.4557,3192.7,3192.1,0.005]
[1763356099300,0.4687,3192.2,3192.1,0.005]
[1763356102401,0.4573,3192.5,3192.1,0.005]
[1763356102567,0.4573,3192.5,3192.1,0.1991]
[1763356103179,0.4573,3192.5,3192.1,0.005]
[1763356103384,0.4733,3192.4,3192.1,0.005]
[1763356103865,0.481,3192.2,3192.1,0.005]
[1763356104285,0.4733,3192.4,3192.1,0.005]
[1763356104478,0.1846,3193.2,3192.1,0.005]
[1763356104695,0.4733,3192.7,3192.1,0.005]
[1763356104867,0.481,3192.2,3192.1,0.005]
[1763356105372,0.9543,3192.2,3192.1,0.005]
[1763356110728,0.96508283,3192.6,3192.1,0.005]
[1763356111332,0.4733,3192.5,3192.1,0.005]
[1763356111627,0.481,3192.2,3192.1,0.005]
[1763356112135,0.9543,3192.2,3192.1,0.005]
[1763356113533,0.481,3192.2,3192.1,0.005]
[1763356113836,0.49178283,3192.6,3192.1,0.1991]
[1763356114136,0.96508283,3192.6,3192.1,0.1991]
[1763356114513,0.4733,3192.5,3192.1,0.1991]
[1763356114709,0.6731,3191.9,3191.7,0.001]
[1763356114932,0.481,3191.8,3191.7,0.001]
[1763356115435,0.9543,3191.8,3191.7,0.001]
[1763356115643,1.44616005,3191.8,3191.7,0.001]
[1763356115829,0.9543,3191.8,3191.7,0.001]
[1763356118727,6.57679419,3191.8,3191.7,0.001]
[1763356118950,7.9492903,3191.8,3191.7,0.001]
[1763356119506,0.405504,3191.6,3191.4,0.001]
[1763356119754,0.886504,3191.6,3191.4,0.001]
[1763356119921,1.359804,3191.6,3191.4,0.001]
[1763356121648,0.481,3191.4,3191.2,0.001]
[1763356121813,1.6147408,3191.3,3191.2,0.001]
[1763356122013,2.72553407,3191.3,3191.2,0.001]
[1763356124065,1.11849327,3191.3,3191.2,0.001]
[1763356124235,0.481,3191.3,3191.2,0.001]
[1763356124652,0.9543,3191.3,3191.2,0.001]
[1763356125541,0.481,3191.3,3191.2,0.001]
[1763356125744,0.9543,3191.3,3191.2,0.001]
[1763356126535,6.78043671,3191.3,3191.2,0.001]
[1763356126739,7.45848038,3191.3,3191.2,0.001]
[1763356129165,7.95057666,3191.3,3191.2,0.001]
[1763356129540,7.45848038,3191.3,3191.2,0.001]
[1763356130773,5.7965448,3191.2,3190.6,0.001]
[1763356130946,5.82613671,3190.8,3190.6,0.001]
[1763356131171,6.48543671,3190.8,3190.6,0.001]
[1763356131371,6.95873671,3190.8,3190.6,0.001]
[1763356132498,7.45094896,3190.8,3190.6,0.001]
[1763356132695,6.95873671,3190.8,3190.6,0.001]
[1763356132896,7.98491038,3190.8,3190.6,0.001]
[1763356133273,7.98491038,3190.8,3189.1,0.005]
[1763356133274,0.405504,3190.5,3189.1,0.005]
[1763356133506,5.15689591,3190.2,3189.1,0.005]
[1763356133668,6.29063671,3190.2,3189.1,0.005]
[1763356133866,6.75943671,3190.2,3189.1,0.005]
[1763356134202,7.43538038,3190.2,3189.1,0.005]
[1763356135520,1.5392448,3190.1,3189.1,0.005]
[1763356135665,0.6592,3189.2,3189.1,0.005]
[1763356136068,1.128,3189.2,3189.1,0.005]
[1763356139607,1.533504,3189.2,3189.1,0.005]
[1763356139809,0.4645,3189.2,3189.1,0.005]
[1763356140704,0.9333,3189.2,3189.1,0.005]
[1763356141774,0.4645,3189.2,3189.1,0.005]
[1763356141974,0.9333,3189.2,3189.1,0.005]
[1763356142176,2.4725448,3189.2,3189.1,0.005]
[1763356142496,2.69915847,3189.2,3189.1,0.005]
[1763356142697,3.16795847,3189.2,3189.1,0.005]
[1763356145914,3.6603789,3189.2,3189.1,0.005]
[1763356146135,1.1878341,3189.2,3189.1,0.005]
[1763356146341,0.9333,3189.2,3189.1,0.005]
[1763356147143,1.338804,3189.2,3189.1,0.005]
[1763356149402,2.96500115,3189.2,3189.1,0.005]
[1763356151048,1.5392448,3189.1,3188.1,0.005]
[1763356151249,2.0037448,3188.2,3188.1,0.005]
[1763356151416,5.15689591,3188.2,3188.1,0.005]
[1763356151603,6.75943671,3188.2,3188.1,0.005]
[1763356153053,1.5392448,3188.1,3187.1,0.005]
[1763356153234,0.6592,3187.2,3187.1,0.005]
[1763356153405,0.60798327,3187.2,3187.1,0.005]
[1763356153606,1.1337408,3187.7,3187.1,0.4032]
[1763356153821,1.6025408,3187.7,3187.1,0.005]
[1763356154036,0.4688,3187.6,3187.1,0.005]
[1763356154232,1.1337408,3187.7,3187.1,0.005]
[1763356154541,1.01086327,3187.6,3187.1,0.005]
[1763356154746,0.54206327,3187.6,3187.1,0.005]
[1763356155133,0.54206327,3187.6,3187.5,0.1991]
[1763356155336,0.405504,3187.8,3187.5,0.1991]
[1763356155738,0.874304,3187.8,3187.1,0.005]
[1763356156048,4.28689191,3187.6,3187.1,0.005]
[1763356156246,6.29063671,3187.2,3187.1,0.005]
[1763356156444,6.91970038,3187.2,3187.1,0.005]
[1763356156650,7.38850038,3187.2,3187.1,0.005]
[1763356157715,1.9943448,3187.1,3186.7,0.001]
[1763356157953,6.46543671,3186.8,3186.7,0.001]
[1763356158151,7.11198038,3186.8,3186.7,0.001]
[1763356158313,7.60648038,3186.8,3186.7,0.001]
[1763356159548,7.11198038,3186.8,3186.7,0.001]
[1763356159735,7.60477392,3186.8,3186.7,0.001]
[1763356159939,3.81238201,3186.8,3186.7,0.001]
[1763356160134,6.95993671,3186.8,3186.7,0.001]
[1763356160536,6.95993671,3186.8,3186.1,0.005]
[1763356160537,0.405504,3186.4,3186.1,0.005]
[1763356160737,6.28123671,3186.2,3186.1,0.005]
[1763356162072,1.1337408,3186.2,3186.1,0.0552]
[1763356162272,1.9949448,3186.2,3186.1,0.005]
[1763356162461,6.48133119,3186.2,3186.1,0.005]
[1763356162662,5.62012719,3186.2,3186.1,0.005]
[1763356162987,6.11299102,3186.2,3186.1,0.005]
[1763356164384,6.56869102,3186.2,3186.1,0.005]
[1763356165464,6.11299102,3186.2,3186.1,0.005]
[1763356166370,2.23160311,3186.2,3186.1,0.005]
[1763356166577,2.68730311,3186.2,3186.1,0.005]
[1763356168192,2.23160311,3186.2,3186.1,0.005]
[1763356168829,1.5392448,3186.1,3184.2,0.1509]
[1763356168988,4.28689191,3185.3,3184.2,0.1509]
[1763356169193,1.5392448,3185.2,3184.7,0.2011]
[1763356170224,1.5392448,3185.2,3184.4,0.2011]
[1763356170526,2.4937448,3185.2,3184.2,0.352]
[1763356171189,1.5392448,3185.2,3184.6,0.2011]
[1763356171389,2.12185847,3185.2,3184.6,0.2011]
[1763356171789,2.12185847,3185.2,3185.1,0.2061]
[1763356172014,1.71635447,3185.2,3185.1,0.2061]
[1763356172217,2.12185847,3185.2,3185.1,0.005]
[1763356172608,3.07635847,3185.2,3185.1,0.005]
[1763356173431,3.56939462,3185.2,3185.1,0.005]
[1763356175019,0.2011,3185.7,3185.1,0.2061]
[1763356175222,0.002,3186.4,3185.6,0.2011]
[1763356175437,0.002,3186.4,3186.3,0.2513]
[1763356175928,0.002,3186.4,3186.3,0.4524]
[1763356176915,0.002,3186.4,3186.3,0.2513]
[1763356177212,0.002,3186.4,3186.3,0.4524]
[1763356177422,0.002,3186.8,3186.3,0.4524]
[1763356177616,0.002,3186.8,3186.7,0.2011]
[1763356178023,0.002,3186.8,3186.7,0.4022]
[1763356180206,0.002,3186.8,3185.7,2.3792114]
[1763356180428,0.002,3186.8,3185.8,0.23792114]
[1763356182209,0.002,3186.8,3185.6,0.405504]
[1763356182664,0.002,3186.8,3185.2,4.1078214]
[1763356182839,0.002,3186.8,3185.4,0.405504]
[1763356183040,1.1357408,3186.8,3184.7,1.1337408]
[1763356183225,1.1357408,3186.8,3185.0,1.1337408]
[1763356183427,1.1357408,3186.8,3185.1,0.410504]
[1763356183628,0.54259622,3186.7,3185.1,0.410504]
[1763356184036,0.54259622,3186.7,3185.1,0.005]
[1763356185964,1.1337408,3186.5,3185.1,0.005]
[1763356186283,4.1078214,3186.3,3185.1,0.005]
[1763356186631,0.4988,3186.4,3185.1,0.005]
[1763356186831,0.16325408,3186.3,3185.1,0.005]
[1763356188283,0.54259622,3186.7,3185.1,0.005]
[1763356188582,0.49278485,3186.1,3185.1,0.005]
[1763356188884,1.04139622,3186.7,3185.1,0.005]
[1763356189768,1.04139622,3186.7,3185.2,4.1078214]
[1763356189950,1.04139622,3186.7,3185.1,0.005]
[1763356189951,0.002,3186.8,3185.1,0.005]
[1763356190154,0.002,3186.8,3185.2,4.1078214]
[1763356190490,0.5008,3186.8,3185.2,4.1078214]
[1763356191063,0.405504,3186.5,3185.1,0.005]
[1763356191296,0.002,3186.4,3185.1,0.005]
[1763356191456,0.4655,3186.4,3185.1,0.005]
[1763356191653,0.20047448,3186.3,3185.1,0.005]
[1763356191852,0.49287713,3186.1,3185.1,0.005]
[1763356192521,0.4635,3186.0,3185.1,0.005]
[1763356193478,0.1805,3185.9,3185.1,0.005]
[1763356194182,0.49287713,3186.1,3185.1,0.005]
[1763356194395,0.16266179,3186.0,3185.1,0.005]
[1763356194763,0.1805,3185.9,3185.1,0.005]
[1763356194959,0.16266179,3186.0,3185.1,0.005]
[1763356195885,0.405504,3185.9,3185.1,0.005]
[1763356196084,0.16266179,3186.0,3185.1,0.005]
[1763356197174,0.62616179,3186.0,3185.1,0.005]
[1763356197757,0.4635,3185.9,3185.1,0.005]
[1763356197970,0.16266179,3186.0,3185.1,0.005]
[1763356198170,0.64242797,3185.9,3185.1,0.005]
[1763356198904,0.17892797,3185.9,3185.1,0.005]
[1763356199105,0.49287713,3186.1,3185.1,0.005]
[1763356199608,0.95637713,3186.1,3185.1,0.005]
[1763356199995,0.869004,3186.0,3185.1,0.005]
[1763356200515,0.4635,3185.9,3185.1,0.005]
[1763356200718,1.5972408,3185.9,3185.1,0.005]
[1763356200859,0.61105662,3185.8,3185.1,0.005]
[1763356201064,0.4562,3185.2,3185.1,0.005]
[1763356201388,0.9197,3185.2,3185.1,0.005]
[1763356201757,0.4562,3185.2,3185.1,0.005]
[1763356202165,0.94913757,3185.2,3185.1,0.005]
[1763356202499,0.4562,3185.2,3185.1,0.005]
[1763356202708,0.9197,3185.2,3185.1,0.005]
[1763356202911,1.1337408,3185.7,3185.1,0.005]
[1763356203077,0.4635,3185.9,3185.1,0.005]
[1763356204008,4.2883214,3186.2,3185.1,0.005]
[1763356204009,0.1805,3186.2,3185.1,0.005]
[1763356204617,0.4635,3186.1,3185.1,0.005]
[1763356204997,0.4655,3186.4,3185.1,0.005]
[1763356205183,0.002,3186.4,3185.1,0.005]
[1763356205585,0.4928408,3186.1,3185.1,0.005]
[1763356206011,0.4928408,3186.1,3185.2,0.41138214]
[1763356206515,0.002,3186.4,3185.2,0.41138214]
[1763356206713,0.002,3186.4,3185.6,4.1078214]
[1763356207012,0.002,3186.4,3185.3,4.1078214]
[1763356208119,0.002,3186.4,3185.2,0.41138214]
[1763356209307,0.002,3186.4,3185.3,4.1078214]
[1763356209509,0.002,3186.4,3185.4,0.39520692]
[1763356212119,0.002,3186.4,3185.1,1.1387408]
[1763356214109,0.002,3186.4,3185.3,4.1078214]
[1763356217849,0.49275771,3186.2,3185.3,4.1078214]
[1763356219649,0.4501,3186.3,3185.3,4.1078214]
[1763356222040,0.4501,3186.3,3185.1,0.005]
[1763356222367,0.4501,3186.3,3185.2,0.41138214]
[1763356222521,0.4501,3186.3,3185.1,0.005]
[1763356222849,0.4501,3186.3,3185.1,4.1128214]
[1763356224545,0.49477996,3186.4,3185.1,4.1128214]
[1763356225139,0.49477996,3186.4,3185.7,4.1078214]
[1763356230829,0.002,3186.4,3185.7,4.1078214]
[1763356231366,0.002,3186.4,3185.8,0.41078214]
[1763356232156,0.002,3186.4,3186.0,4.1078214]
[1763356233090,0.002,3186.4,3185.8,0.41078214]
[1763356233242,0.002,3186.4,3185.5,1.5392448]
[1763356238852,0.002,3186.4,3185.5,0.405504]
[1763356239493,0.002,3186.4,3185.5,1.5392448]
[1763356244197,0.002,3186.4,3185.5,1.5402448]
[1763356244986,0.4715,3186.4,3185.5,1.5402448]
[1763356245389,0.002,3186.4,3185.5,1.5402448]
[1763356248209,0.002,3186.4,3185.5,0.406504]
[1763356248416,0.002,3186.4,3185.5,1.5402448]
[1763356250178,0.4715,3186.4,3185.5,1.5402448]
[1763356250722,0.002,3186.4,3185.5,1.5402448]
[1763356250879,0.002,3186.4,3185.9,1.5392448]
[1763356251322,0.002,3186.4,3186.3,1.5392448]
[1763356251618,0.002,3186.4,3186.1,0.405504]
[1763356251975,0.002,3186.4,3185.6,0.405504]
[1763356252598,0.002,3186.4,3185.8,4.2980554]
[1763356252808,0.002,3186.4,3186.0,0.405504]
[1763356253518,0.002,3186.4,3185.5,0.001]
[1763356255692,0.4897,3186.4,3185.5,0.001]
[1763356256703,0.002,3186.4,3185.5,0.001]
[1763356257714,0.002,3186.4,3185.6,1.5392448]
[1763356257879,0.002,3186.4,3185.6,1.1337408]
[1763356259105,0.002,3186.4,3185.7,0.405504]
[1763356259899,0.4897,3186.4,3185.7,0.405504]
[1763356260422,0.002,3186.4,3185.7,0.405504]
[1763356260922,0.002,3186.4,3186.0,1.1337408]
[1763356261123,0.002,3186.4,3186.0,1.5630882]
[1763356261306,0.4897,3186.4,3186.0,1.5630882]
[1763356262757,0.4819,3186.1,3185.7,0.405504]
[1763356265431,0.002,3186.4,3185.7,0.405504]
[1763356265808,0.4897,3186.4,3185.7,0.405504]
[1763356267207,0.4897,3186.4,3185.6,3.15973315]
[1763356268944,0.4897,3186.4,3185.5,0.001]
[1763356269315,0.4897,3186.4,3185.5,3.16073315]
[1763356269850,0.4897,3186.4,3185.6,1.1337408]
[1763356272212,0.4897,3186.4,3185.6,1.5631882]
[1763356274329,0.4819,3185.7,3185.5,0.001]
[1763356276744,0.1851,3186.2,3185.5,0.001]
[1763356276944,0.002,3186.4,3185.5,0.001]
[1763356277259,0.002,3186.4,3185.8,3.15973315]
[1763356277645,0.5002,3186.4,3185.8,3.15973315]
[1763356278042,0.5002,3186.4,3185.6,1.5392448]
[1763356278221,0.5002,3186.4,3185.6,2.0092426]
[1763356280460,0.5002,3186.4,3185.6,2.0102426]
[1763356282896,0.002,3186.4,3185.6,2.0102426]
[1763356283268,0.4659,3186.4,3185.6,2.0102426]
[1763356286657,0.4659,3186.4,3185.6,1.5402448]
[1763356286888,0.6663,3185.7,3185.6,0.001]
[1763356287392,1.1302,3185.7,3185.6,0.001]
[1763356295983,4.28993315,3185.7,3185.6,0.001]
[1763356296186,4.71892647,3185.7,3185.6,0.001]
[1763356296617,4.84480268,3185.7,3185.6,0.001]
[1763356296783,5.97854348,3185.7,3185.6,0.001]
[1763356298910,9.14230792,3185.7,3185.6,0.001]
[1763356299108,5.98257477,3185.7,3185.6,0.001]
[1763356300181,2.81881033,3185.7,3185.6,0.001]
[1763356300380,5.98257477,3185.7,3185.6,0.001]
[1763356300584,5.85669856,3185.7,3185.6,0.001]
[1763356304686,6.34953769,3185.7,3185.6,0.001]
[1763356306318,9.51330213,3185.7,3185.6,0.001]
[1763356306520,9.63918626,3185.7,3185.6,0.001]
[1763356307690,10.04469026,3185.7,3185.6,0.001]
[1763356310893,16.38469026,3185.7,3185.6,0.001]
[1763356311648,12.81542182,3185.7,3185.6,0.001]
[1763356312122,15.97918626,3185.7,3185.6,0.001]
[1763356312622,12.81542182,3185.7,3185.6,0.001]
[1763356317146,12.68953769,3185.7,3185.6,0.001]
[1763356317855,12.98176857,3185.7,3185.6,0.001]
[1763356320213,8.25881081,3185.7,3185.6,0.001]
[1763356320414,8.25889175,3185.7,3185.6,0.001]
[1763356320615,8.73879175,3185.7,3185.6,0.001]
[1763356320929,8.69905262,3185.7,3185.6,0.001]
[1763356321339,11.40971706,3185.7,3185.6,0.001]
[1763356321523,0.29231182,3185.7,3185.6,0.001]
[1763356321716,3.16376444,3186.2,3185.6,0.001]
[1763356321918,3.29161491,3186.4,3185.6,0.001]
[1763356322145,1.42595514,3186.3,3185.6,0.001]
[1763356322348,1.1337408,3186.3,3185.6,0.001]
[1763356323051,0.29235134,3186.2,3185.6,0.001]
[1763356324542,3.16576444,3186.4,3185.6,0.001]
[1763356324746,0.002,3186.4,3185.6,0.001]
[1763356324943,0.002,3186.4,3185.7,0.31657644]
[1763356325142,0.002,3186.4,3185.6,0.001]
[1763356325738,0.4531,3186.3,3185.6,0.001]
[1763356326643,3.61686444,3186.3,3185.6,0.001]
[1763356328562,3.16376444,3186.1,3185.6,0.001]
[1763356329079,0.4531,3186.0,3185.6,0.001]
[1763356329670,0.4531,3186.3,3185.6,0.001]
[1763356330580,3.16576444,3186.4,3185.6,0.001]
[1763356330581,3.61886444,3186.4,3185.6,0.001]
[1763356331098,0.4531,3186.3,3185.6,0.001]
[1763356332344,1.7942408,3185.7,3185.6,0.001]
[1763356332546,1.1337408,3185.9,3185.6,0.001]
[1763356332845,1.7674408,3185.9,3185.6,0.001]
[1763356333074,0.4531,3185.8,3185.6,0.001]
[1763356333446,0.4799,3185.7,3185.6,0.001]
[1763356333965,0.4531,3185.8,3185.6,0.001]
[1763356334478,0.94590255,3185.8,3185.6,0.001]
[1763356334781,1.44019998,3185.9,3185.6,0.001]
[1763356334946,1.1337408,3185.9,3185.6,0.001]
[1763356336290,1.44019998,3186.1,3185.6,0.001]
[1763356336461,0.49658509,3186.0,3185.6,0.001]
[1763356337850,0.98937678,3186.0,3185.6,0.001]
[1763356338272,1.6281408,3185.9,3185.6,0.001]
[1763356338480,0.4539,3185.7,3185.6,0.001]
[1763356339179,0.9483,3185.7,3185.6,0.001]
[1763356339483,1.35950644,3185.7,3185.6,0.001]
[1763356340884,3.16376444,3185.8,3185.6,0.001]
[1763356341189,0.9483,3185.7,3185.6,0.001]
[1763356342752,0.12587067,3185.8,3185.6,0.001]
[1763356342955,1.62653249,3186.0,3185.6,0.001]
[1763356343189,0.49708969,3185.9,3185.6,0.001]
[1763356343561,4.14835413,3185.9,3185.6,0.001]
[1763356343760,0.4842,3185.7,3185.6,0.001]
[1763356344068,4.14835413,3185.9,3185.6,0.001]
[1763356344570,0.49279169,3186.0,3185.6,0.001]
[1763356345507,3.16376444,3186.3,3185.6,0.001]
[1763356345991,1.26158256,3186.4,3185.6,0.001]
[1763356345992,3.16376444,3186.1,3185.6,0.001]
[1763356346400,0.4875,3186.0,3185.6,0.001]
[1763356346602,0.4842,3185.7,3185.6,0.001]
[1763356347192,3.36136444,3185.9,3185.6,0.001]
[1763356347486,3.84886444,3185.9,3185.6,0.001]
[1763356348278,0.4842,3185.7,3185.6,0.001]
[1763356348486,3.64796444,3185.7,3185.6,0.001]
[1763356348688,4.13546444,3185.7,3185.6,0.001]
[1763356349002,4.89773388,3185.7,3185.6,0.001]
[1763356349680,5.02361009,3185.7,3185.6,0.001]
[1763356350064,1.85984565,3185.7,3185.6,0.001]
[1763356350264,0.9717,3185.7,3185.6,0.001]
[1763356350699,4.13546444,3185.7,3185.6,0.001]
[1763356353671,0.9717,3185.7,3185.6,0.001]
[1763356353896,4.13546444,3185.7,3185.6,0.001]
[1763356355466,0.9717,3185.7,3185.6,0.001]
[1763356358089,1.4645056,3185.7,3185.6,0.001]
[1763356358602,0.9717,3185.7,3185.6,0.001]
[1763356362670,1.09757067,3185.7,3185.6,0.001]
[1763356364770,0.61007067,3185.7,3185.6,0.001]
[1763356364970,0.49280103,3186.0,3185.6,0.001]
[1763356366385,0.49480103,3186.4,3185.6,0.001]
[1763356366605,0.2924797,3186.3,3185.6,0.001]
[1763356371381,0.4875,3186.2,3185.6,0.001]
[1763356373509,0.6951,3185.7,3185.6,0.001]
[1763356374709,1.1852,3185.7,3185.6,0.001]
[1763356376717,1.31106829,3185.7,3185.6,0.001]
[1763356377619,0.82096829,3185.7,3185.6,0.001]
[1763356378118,0.1956,3185.9,3185.6,0.001]
[1763356378416,0.12585482,3186.0,3185.6,0.001]
[1763356378798,0.61595482,3186.0,3185.6,0.001]
[1763356379119,0.12585482,3186.0,3185.6,0.001]
[1763356379825,0.61595482,3186.0,3185.6,0.001]
[1763356380193,0.12585482,3186.0,3185.6,0.001]
[1763356380607,0.29227098,3186.2,3185.6,0.001]
[1763356381011,0.41811393,3186.2,3185.6,0.001]
[1763356381411,0.12584295,3186.2,3185.6,0.001]
[1763356382525,0.4995,3185.7,3185.6,0.001]
[1763356382824,0.12584295,3186.2,3185.6,0.001]
[1763356383024,2.37087423,3186.2,3185.6,0.001]
[1763356383227,0.45489871,3186.2,3185.6,0.001]
[1763356383411,0.12584295,3186.2,3185.6,0.001]
[1763356383606,0.4901,3186.2,3185.6,0.001]
[1763356383931,0.12584453,3186.1,3185.6,0.001]
[1763356384100,0.4927607,3186.2,3185.6,0.001]
[1763356384431,0.12584295,3186.2,3185.6,0.001]
[1763356385336,0.29416632,3186.4,3185.6,0.001]
[1763356385499,0.29416632,3186.4,3185.6,0.31747146]
[1763356385695,0.002,3186.4,3185.6,0.31747146]
[1763356389339,0.4921,3186.4,3185.6,0.31747146]
[1763356389510,0.002,3186.4,3185.6,0.31747146]
[1763356394508,0.002,3186.4,3185.7,3.16271464]
[1763356394712,0.002,3186.4,3185.8,0.34801861]
[1763356396447,0.002,3186.4,3186.2,3.16271464]
[1763356396832,0.002,3186.4,3186.3,1.5392448]
[1763356398754,0.002,3186.4,3185.8,0.34801861]
[1763356398935,0.002,3186.4,3185.6,1.1347408]
[1763356399533,0.002,3186.4,3185.7,0.405504]
[1763356400524,0.002,3186.4,3185.6,1.1347408]
[1763356400747,0.002,3186.4,3185.6,0.001]
[1763356401137,0.002,3186.4,3185.6,1.1347408]
[1763356401357,0.002,3186.4,3185.7,0.42984554]
[1763356401655,0.4605,3186.4,3185.7,0.42984554]
[1763356401949,0.4605,3186.4,3185.6,0.001]
[1763356407555,3.16271464,3186.3,3185.6,0.001]